Cogmind - Beta 13 @@@ ROGUE MODE // 2024.04.07 @ 05:33:51 Player: KingStarKing Result: Destroyed by Y-45 Defender with Heavy Assault Rifle Performance ------------- Evolutions (1) 500 Regions Visited (3) 600 Robots Destroyed (51) 255 Value Destroyed (1198) 1198 Prototype IDs (0) 0 Alien Tech Used (0) 0 Bonus (108) 108 TOTAL SCORE: 2661 Bonus ------- High Alert Combat Kills 108 Cogmind --------- Core Integrity 0/400 Matter 280/300 Energy 230/250 System Corruption 2% Temperature Cool (0) Movement Treading (160) Location -9/Storage Parts ------- > --- POWER (1) -------- Ion Engine > --- PROPULSION (4) --- Light Treads Improved Treads Improved Treads Improved Treads > --- UTILITY (2) ------ Small Storage Unit Visual Processing Unit > --- WEAPON (2) ------- Particle Gun Mini Grenade Launcher > --- INVENTORY (8) ---- Cooled Ion Engine Faulty Cooled Ion Engine Beam Rifle Particle Gun Autogun Rocket Launcher Peak State ------------ > --- POWER ------------ Light Nuclear Core > --- PROPULSION ------- Improved Treads Improved Treads Improved Treads Improved Treads > --- UTILITY ---------- Small Storage Unit Visual Processing Unit > --- WEAPON ----------- Beam Rifle Mini Grenade Launcher > --- INVENTORY -------- Cooled Ion Engine Cooled Ion Engine Shield Generator Medium Laser Autogun Rocket Launcher [Rating: 19] Favorites ----------- Power Light Nuclear Core Engine Light Ion Engine Power Core Light Nuclear Core Propulsion Improved Treads Treads Improved Treads Leg Aluminum Leg Flight Unit Flight Unit Utility Small Storage Unit Device Improved Terrain Scanner Storage Small Storage Unit Processor Visual Processing Unit Weapon Light Assault Rifle Energy Gun Medium Laser Ballistic Gun Light Assault Rifle Launcher Mini Grenade Launcher Build | -11 -10 -9 -9 ------- Run | Yrd Mat Mat Sto Slots Evolved 2 | . . 2 . Power . | . . . . Propulsion 2 | . . 2 . Utility . | . . . . Weapon . | . . . . Parts Attached 40 | 7 1 26 6 Power 6 | 1 1 3 1 Engine 4 | 1 . 2 1 Core 2 | . 1 1 . Reactor . | . . . . Propulsion 18 | 2 . 13 3 Treads 11 | 2 . 6 3 Leg 2 | . . 2 . Wheel . | . . . . Hover . | . . . . Flight 5 | . . 5 . Utility 3 | 2 . 1 . Device 1 | 1 . . . Storage 1 | 1 . . . Processor 1 | . . 1 . Hackware . | . . . . Protection . | . . . . Artifact . | . . . . Weapon 13 | 2 . 9 2 Energy Gun 5 | 1 . 3 1 Energy Cannon . | . . . . Ballistic Gun 4 | 1 . 3 . Ballistic Cannon . | . . . . Launcher 4 | . . 3 1 Special Weapon . | . . . . Impact Weapon . | . . . . Slashing Weapon . | . . . . Piercing Weapon . | . . . . Special Melee Weapon . | . . . . Unidentified Prototypes . | . . . . Parts Lost 9 | . . 7 2 Power 1 | . . 1 . Propulsion 7 | . . 5 2 Utility . | . . . . Weapon 1 | . . 1 . Highest Loss Streak 3 | . . 3 2 To Critical Strikes . | . . . . Average Slot Usage (%) 97 | . 100 93 99 Engine 2 | . 1 1 7 Core 9 | . 12 9 3 Treads 29 | . 28 26 43 Leg 1 | . . 4 . Flight 2 | . . 6 . Device 6 | . 14 . . Storage 12 | . 14 11 11 Processor 5 | . . 10 11 Energy Gun 9 | . 14 4 10 Ballistic Gun 12 | . 14 10 11 Launcher 2 | . . 6 . Naked Turns . | . . . . Heaviest Build 16 | 12 14 14 16 Greatest Support 92 | 40 40 92 92 Greatest Overweight (x) 3 | 2 . 3 . Average Overweight (x) . | . . . . Largest Inventory Capacity 8 | 8 8 8 8 Average Capacity 7 | 7 8 8 8 Most Carried 8 | 7 8 8 8 Average Carried 7 | 4 7 7 7 Final Capacity 8 | 8 8 8 8 Final Carried 8 | 7 8 8 6 Class Distribution -------------------- 92% | Mutant 7% | Scavenger-Sprinter Dominant Class ---------------- Mutant | -10/Materials Mutant | -9/Materials Mutant | -9/Storage Resources | -11 -10 -9 -9 ----------- Run | Yrd Mat Mat Sto Matter Collected 1086 | 278 44 436 328 Remotely . | . . . . Salvage Created 1232 | 112 294 483 343 Parts 111 | 7 23 55 26 Haulers Intercepted . | . . . . Recyclers Shooed 1 | . . 1 . Parts Field Recycled . | . . . . Retrieved Matter . | . . . . Parts Self-Destructed . | . . . . Prevented . | . . . . Kills | -11 -10 -9 -9 ------- Run | Yrd Mat Mat Sto Combat Hostiles Destroyed 41 | . 11 22 8 Guns 31 | . 11 12 8 AOE 10 | . . 10 . Classes Destroyed 7 | 3 2 2 . Worker 2 | 1 . 1 . Tunneler 2 | 1 . 1 . Recycler 1 | 1 . . . Watcher 5 | . . 5 . Swarmer 21 | . 6 15 . Grunt 13 | . 5 3 5 Sentry 7 | . . 4 3 Best Kill Streak 5 | 2 3 4 5 Combat Bots Only 5 | . 3 4 5 Max Kills in Single Turn 4 | 1 1 4 1 Gunslinging . | . . . . Exploded 4 | . . 4 . Melee . | . . . . Uniques/NPCs Destroyed . | . . . . Combat | -11 -10 -9 -9 -------- Run | Yrd Mat Mat Sto Hostile Shots Fired 216 | . 51 102 63 Missed 51 | . 11 26 14 Damage Taken 2277 | . 400 1215 662 Core 494 | . 82 300 112 Absorbed by Shields . | . . . . Regen/Repaired (Parts) 41 | . . 41 . Core Remaining (%) 83 | 100 67 . . Volleys Fired 127 | 8 34 52 33 Largest 2 | 2 2 2 2 Hottest 95 | 70 70 86 95 Shots Fired 249 | 16 68 99 66 Gun 230 | 16 68 83 63 Cannon . | . . . . Launcher 19 | . . 16 3 Special . | . . . . Kinetic 124 | 8 34 50 32 Thermal 106 | 8 34 33 31 Explosive 19 | . . 16 3 Electromagnetic . | . . . . Robot Hit Streak 10 | 3 10 10 9 Robot Miss Streak 6 | 5 2 6 2 Penetration Max . | . . . . Secondary Targets 5 | . 1 2 2 Max Gunslinging Chain 1 | . 1 1 1 Shots Hit Robots 138 | 8 42 50 38 Core Hits 85 | 5 20 43 17 Critical Kills . | . . . . Critical Parts Destroyed . | . . . . Critical Strikes 5 | 1 1 3 . Burn 5 | 1 1 3 . Melee Attacks . | . . . . Impact . | . . . . Slashing . | . . . . Piercing . | . . . . Sneak Attacks . | . . . . Combat Hostiles . | . . . . Follow-up Attacks . | . . . . Damage Inflicted 2823 | 79 464 1630 650 Guns 1656 | 79 464 507 606 Cannons . | . . . . Explosions 1167 | . . 1123 44 Melee . | . . . . Ramming . | . . . . Kinetic 820 | 30 177 267 346 Thermal 1433 | 49 287 837 260 Explosive 570 | . . 526 44 Electromagnetic . | . . . . Impact . | . . . . Slashing . | . . . . Piercing . | . . . . Highest Corruption 2 | . . 2 2 Average Corruption 2 | . . 2 2 Corruption Purged . | . . . . Corruption Blocked . | . . . . Effects 10 | . . 4 6 Message Errors 3 | . . 1 2 Matter Fused 3 | . . 2 1 Heat Flow Errors 3 | . . 1 2 Data Loss (minor) 1 | . . . 1 Overload Shots . | . . . . Overflow Damage 268 | . . 268 . Projectiles . | . . . . Explosions 268 | . . 268 . Melee . | . . . . Knockbacks . | . . . . Impact . | . . . . Kinetic . | . . . . Secondary . | . . . . Self-Inflicted Damage 380 | . . 380 . Shots 6 | . . 6 . Rammed . | . . . . Targets Rammed . | . . . . Kicked . | . . . . Crushed . | . . . . Highest Temperature 446 | 90 202 148 446 Average Temperature 85 | 40 66 34 171 Received Heat Transfer 618 | . 147 180 291 Effects 6 | . . . 6 Shutdowns 2 | . . . 2 Matter Decay 1 | . . . 1 Damage (major) 3 | . . . 3 Siege Activations . | . . . . Robots Corrupted . | . . . . Combat Hostiles . | . . . . Parts Fried . | . . . . Impact Corruptions . | . . . . Robots Melted . | . . . . Combat Hostiles . | . . . . Parts Melted 3 | . . 3 . Heat Transferred 3051 | 222 925 1275 629 Parts Sabotaged . | . . . . Parts Stolen . | . . . . Parts Stripped . | . . . . Power Chain Reactions . | . . . . Alert | -11 -10 -9 -9 ------- Run | Yrd Mat Mat Sto Peak Influence 703 | 15 189 703 571 Initial 261 | . 9 24 261 Average 275 | 3 88 452 453 Maximum Alert Level 3 | . . 3 2 Low Security (%) 53 | 100 100 14 . Level 1 13 | . . 20 39 Level 2 33 | . . 65 60 Level 3 . | . . . . Level 4 . | . . . . Level 5 . | . . . . High Security . | . . . . Max Security . | . . . . Squads Dispatched 4 | . 1 3 . Investigation 1 | . . 1 . Extermination . | . . . . Reinforcement 2 | . 1 1 . Assault 1 | . . 1 . Garrison . | . . . . Intercept . | . . . . Searches Triggered . | . . . . Construction Impeded . | . . . . Haulers Reinforced . | . . . . Active Scanning Responses . | . . . . Cargo Convoy Interrupts . | . . . . Stealth | -11 -10 -9 -9 --------- Run | Yrd Mat Mat Sto Distress Signals 8 | . 4 4 . Communications Jammed . | . . . . Distress Signals . | . . . . Times Spotted 80 | . 28 40 12 Peak Tracking Total 6 | . 4 6 4 Tactical Retreats 7 | . 2 5 . Traps | -11 -10 -9 -9 ------- Run | Yrd Mat Mat Sto Traps Triggered 1 | . . 1 . Indirectly . | . . . . Trap Hack Attempts . | . . . . Triggered . | . . . . Disarmed . | . . . . Reprogrammed . | . . . . Reused . | . . . . Traps Extracted . | . . . . Installed . | . . . . Triggered . | . . . . Machines | -11 -10 -9 -9 ---------- Run | Yrd Mat Mat Sto Machines Disabled 10 | . 1 7 2 Max in Single Turn 3 | . 1 3 1 Machines Repaired . | . . . . Machines Dismantled . | . . . . Machines Sabotaged . | . . . . Overloaded Fab Kills . | . . . . Hacking | -11 -10 -9 -9 --------- Run | Yrd Mat Mat Sto Machines Accessed 5 | . 2 3 . Terminals 3 | . 1 2 . Fabricators . | . . . . Repair Stations 1 | . . 1 . Recycling Units 1 | . 1 . . Scanalyzers . | . . . . Garrison Access . | . . . . Total Hacks 9 | . 2 7 . Successful 6 | . 2 4 . Failed 3 | . . 3 . Catastrophic . | . . . . Database Lockouts . | . . . . Manual . | . . . . Terminals 5 | . 1 4 . Fabricators . | . . . . Repair Stations 3 | . . 3 . Recycling Units 1 | . 1 . . Scanalyzers . | . . . . Garrison Access . | . . . . Terminal Hacks 2 | . 1 1 . Alert Level 1 | . 1 . . Locate Traps 1 | . . 1 . Fabricator Hacks . | . . . . Repair Station Hacks 3 | . . 3 . Scan Component 2 | . . 2 . Repair 1 | . . 1 . Recycling Unit Hacks 1 | . 1 . . Report Inventory 1 | . 1 . . Scanalyzer . | . . . . Garrison Access Hacks . | . . . . Unauthorized Hacks . | . . . . Terminals . | . . . . Fabricators . | . . . . Repair Stations . | . . . . Recycling Units . | . . . . Scanalyzers . | . . . . Garrison Access . | . . . . Data Cores Recovered . | . . . . Used . | . . . . Hacking Detections 2 | . . 2 . Full Trace Events 1 | . . 1 . Feedback Events . | . . . . Feedback Blocked . | . . . . Robot Schematics Acquired . | . . . . Robots Built . | . . . . Authchips . | . . . . Time . | . . . . Total Robot Build Rating . | . . . . Part Schematics Acquired . | . . . . Parts Built . | . . . . Authchips . | . . . . Time . | . . . . Total Part Build Rating . | . . . . Parts Repaired 1 | . . 1 . Time 38 | . . 38 . Parts Recycled . | . . . . Recycled Matter . | . . . . Retrieved Matter . | . . . . Retrieved Components . | . . . . Parts Scanalyzed . | . . . . Part Schematics Acquired . | . . . . Parts Damaged . | . . . . Bothacking | -11 -10 -9 -9 ------------ Run | Yrd Mat Mat Sto Used RIF Installer . | . . . . Robots Hacked . | . . . . Non-combat . | . . . . Combat . | . . . . Robot Hacks Applied . | . . . . Relay Couplers Released . | . . . . Fabnet Peak Effective % . | . . . . Robots Rewired . | . . . . Allies Hacked . | . . . . Hacks Repelled . | . . . . Allies | -11 -10 -9 -9 -------- Run | Yrd Mat Mat Sto Total Allies . | . . . . Largest Group . | . . . . Highest-Rated Group . | . . . . Highest-Rated Ally . | . . . . Total Orders . | . . . . Ally Attacks . | . . . . Total Damage . | . . . . Kills . | . . . . Allies Corrupted . | . . . . Allies Melted . | . . . . Intel | -11 -10 -9 -9 ------- Run | Yrd Mat Mat Sto Robot Analysis Total . | . . . . Derelict Logs Recovered . | . . . . Drone Launches . | . . . . Drone Recoveries . | . . . . Exploration | -11 -10 -9 -9 ------------- Run | Yrd Mat Mat Sto Turns Passed 3352 | 175 1421 1285 471 Spaces Moved 1946 | 87 793 848 218 Core 9 | 6 . 3 . Treads 1506 | 81 793 414 218 Legs 167 | . . 167 . Wheels . | . . . . Hover . | . . . . Flight 264 | . . 264 . Fastest Speed 31 | 50 160 31 160 Average Speed 141 | 157 160 116 160 Slowest Speed 200 | 160 160 200 160 Overloaded Moves . | . . . . Propulsion Burnouts . | . . . . Robots Hopped 1 | . . 1 . Cave-ins Triggered . | . . . . Exploration Rate (%) 52 | 5 94 76 36 Regions Visited 3 Branch Regions 1 Pre-discovered Areas . | . . . . Known Exits Taken . | . . . . Unknown Exits Taken 3 | 1 1 1 . Scrap Searched . | . . . . Spaces Dug 16 | . . 10 6 Terrain Destroyed 269 | . . 244 25 Melee . | . . . . Projectile . | . . . . AOE 269 | . . 244 25 Terrain Rammed . | . . . . Walls Destroyed . | . . . . Machines Disabled . | . . . . Actions | -11 -10 -9 -9 --------- Run | Yrd Mat Mat Sto Total 2328 | 108 886 1052 282 Wait 169 | . 53 94 22 Move 1941 | 86 792 845 218 Hop 1 | . . 1 . Pick Up 26 | 7 3 15 1 Fast Attach 18 | 7 . 10 1 Attach 8 | . . 6 2 Detach 3 | . . 3 . Swap 14 | . 1 10 3 Drop 21 | . 3 16 2 Fire 127 | 8 34 52 33 Melee . | . . . . Ram . | . . . . Kick . | . . . . Crush . | . . . . Escape Stasis . | . . . . Rewire . | . . . . Trap . | . . . . Miscellaneous . | . . . . Route ------- -11/Scrapyard -10/Materials (discovered 4 exits: *Mat x3 / [*Min]) -9/Materials (discovered 4 exits: [*Mat x3] / [*Sto]) -9/Storage History --------- Turn | Location | Event 22 | -11/Scrapyard | Discovered new exit (range 15) 176 | -11/Scrapyard | Entered Materials 315 | -10/Materials | Build established: Mutant 347 | -10/Materials | Discovered new exit (range 6) 384 | -10/Materials | Discovered new exit (range 14) 1217 | -10/Materials | Discovered new exit (range 13) 1557 | -10/Materials | Discovered new exit (range 13) 1597 | -10/Materials | Entered another Materials area 1597 | -9/Materials | Evolved 2 slots: Propulsion x2 1956 | -9/Materials | Lost 3 parts (1p1n1w) 2025 | -9/Materials | Repaired Lgt. Nuclear Core 2087 | -9/Materials | Core integrity fell below 50% 2113 | -9/Materials | Discovered new exit (range 10) 2198 | -9/Materials | Discovered new exit (range 17) 2462 | -9/Materials | Discovered new exit (range 9) 2797 | -9/Materials | First assault squad dispatched 2810 | -9/Materials | Discovered new exit (range 6) 2882 | -9/Materials | Entered Storage 2991 | -9/Storage | Core integrity fell below 20% 3353 | -9/Storage | Destroyed by Y-45 Defender with Heavy Assault Rifle Last Messages --------------- K-01 Serf cleans the Component Storage. K-01 Serf collects debris. 09I,Y /|&VKDOUT2IV5IY&P C-30 ARC bursts open, deploying its payload. G-47 Trooper unfolds itself. G-34 Mercenary unfolds itself. Y-45 Defender destroyed. Imp. Treads destroyed. G-47 Trooper destroyed. Switching to secondary target: G-34 Mercenary. Overheating: Matter decay (-62). Power failure, Ion Engine shutdown. G-34 Mercenary destroyed. System corrupted: Matter fused (-9). Acquired 54 matter. Acquired 79 matter. R-06 Scavenger collects Ion Engine. System corrupted: Component data lost. System corrupted: Heat flow error (+166). System corrupted: Heat flow error (+126). Map ----- +----------------------------------------------------+ | ?????????????????????????????????? | | ?????????????????????????????????? | | ?????????????????????????????????? | | ?????????????????????????????????? | | ?????????????????????????????????? | | ?????????????????????????????????? | | ?????????????????????????????????? | | ?????????????????????????????????? | | ????????????????????????####?????? | | ???????????????????????? #???? | | ???????????????????????? #???? | | ???????????????????????? Y #???? | | ???????????????????????? #???? | | ???????????????????????? #???? | | ???????????????????????? #???? | | ???????????????????????? #???? | | ???????????????????????? #???? | | ???????????????????????? ????? | | ###????????????????????? ????? | | # ###???????????????????# #????? | | #???????????????????# #????? | | """ #???????????????????# #????? | | """ #???????????????????# #????? | | """ ##################### #????? | | # #????? | | """%+ @ #????? | | "" # #????? | | """ ###+#+#########+##### #????? | | % # # #????? | | # # # #????? | | # [ """"# #????? | | ##### """"# #????? | | ????# "" """"# #????? | | ????# ** "Y """# #????? | | ????# ** #"" #####????? | | ????# ### #????????? | | ????# #?# #????????? | | ????##########?##########????????? | | ?????????????????????????????????? | | | | | | | | | | | | | | | | | | | | | | | +----------------------------------------------------+ Best States ------------- Heat Dissipation 28 Energy Generation 14 Energy Capacity 250 Matter Stores 300 Matter Capacity 300 Sight Range 18 Terrain Scan Range 16 Terrain Scan Density 10 Evasion (%) 63 Recoil Reduction 4 Item Schematics ----------------- None Robot Schematics ------------------ None Fabricated ------------ Nothing Alien Tech Used ----------------- None Achievements -------------- Significant Disruption Challenges ------------ None Game ------ Seed AutogunCommStorage Manual? 0 Play Time 00:42:01 Cumulative 8.7 hours Start 2024.04.06 @ 17:21:02 End 2024.04.07 @ 05:33:51 Sessions 5 Manual Loads 0 Difficulty Rogue Special Mode None Game No. 9 Rogue 9 Adventurer 0 Explorer 0 Win Type - Total 0 Types 0/0/0/0/0/0/0/0/0 Lore% 11 Gallery% 11 Achievement% 11 Wizard Run 0 Options --------- Layout 0 ASCII 0 Keyboard 0 Movement Numpad Keybinds 0 Fullscreen 1 Font 18/SmallcapsGlow Map View 76x50 Zoom Use 91% Tactical HUD 0 Map Filters NONE Filters NONE Steam 1 RUN: 12eb4d95-db86-43fa-a119-b3dba25ae039